[Event "Reykjavik Open 2024"]
[Site "Reykjavik"]
[Date "2024.03.18"]
[Round "5.25"]
[White "Tania, Sachdev"]
[Black "Duong, Thanh Nha"]
[Result "1-0"]
[ECO "D38"]
[WhiteElo "2393"]
[BlackElo "2144"]
[Annotator "TA"]
[PlyCount "119"]
[EventDate "2024.03.12"]
[EventCountry "ISL"]
[SourceTitle "playchess.com"]
[Source "ChessBase"]
[SourceQuality "1"]
[TimeControl "40/5400+30:1800+30"]

{[%evp 29,119,67,60,52,54,53,45,45,51,47,47,47,67,56,55,50,60,44,42,50,40,23,41,0,17,25,38,0,32,32,43,21,43,0,67,53,62,25,41,12,14,12,21,-14,270,267,288,252,396,367,387,395,383,409,398,352,383,368,588,581,566,360,620,617,645,691,677,685,708,736,741,671,754,747,739,724,799,770,836,771,1018,942,1447,1447,1416,1176,5333,5057,29965,29966,29964,5983]} 1. d4 {[%emt 0:00:08]} Nf6 {[%emt 0:01:25]} 2. c4 {[%emt 0:00:09]} e6 {[%emt 0:00:41]} 3. Nf3 {[%emt 0:00:17]} d5 {[%emt 0:00:30]} 4. Nc3 {[%emt 0:00:08]} Bb4 {[%emt 0:01:26]} 5. Qa4+ {[%emt 0:00:30]} Nc6 {[%emt 0:00:06]} 6. a3 {[%emt 0:00:02]} Bxc3+ {[%emt 0:03:58]} 7. bxc3 {[%emt 0:00:23]} Bd7 {[%emt 0:02:37]} 8. cxd5 {[%emt 0:00:48] D38: Queen's Gambit Declined: Ragozin Defence (4 Nf3 Bb4).} exd5 {[%emt 0:02:13]} 9. Bg5 {[%emt 0:03:50]} h6 {[%emt 0:03:38]} 10. Bh4 {[%emt 0:00:14]} O-O {[%emt 0:10:32]} 11. Qc2 {[%emt 0:03:55]} Qe7 {[%emt 0:04:41]} 12. e3 {[%emt 0:00:58]} Qe6 {[%emt 0:04:20]} 13. Bd3 $146 {[%emt 0:04:11]} ({Predecessor:} 13. c4 Ne7 14. Ne5 Bc8 15. Bd3 c6 16. O-O Ne4 17. Bxe7 Qxe7 18. cxd5 cxd5 19. Bxe4 dxe4 {1-0 Suarez P,S-Arguelles Ovando,V Yucatan-ch Merida 1998 (6)}) 13... Rfe8 {[%emt 0:09:13]} 14. O-O {[%emt 0:03:21]} Ne4 {[%emt 0:09:05]} 15. c4 {[%emt 0:04:28]} Nd6 {[%emt 0:06:49]} 16. c5 {[%emt 0:03:31]} Nf5 {[%emt 0:01:39]} 17. Bg3 {[%emt 0:02:56]} Nxg3 {[%emt 0:02:50]} 18. hxg3 {[%emt 0:00:26]} Rab8 {[%emt 0:03:27]} 19. Rab1 {[%emt 0:03:35]} Qf6 {[%emt 0:01:42]} 20. Rb2 {[%emt 0:11:46]} Bg4 {[%emt 0:01:03]} 21. Nh2 {[%emt 0:04:31]} Bc8 {[%emt 0:04:10]} 22. Rfb1 {[%emt 0:11:49]} h5 {[%emt 0:00:41]} 23. Qb3 {[%emt 0:06:17]} Rd8 {[%emt 0:01:44]} 24. Qd1 {[%emt 0:05:05]} g6 {[%emt 0:00:34]} 25. Nf3 {[%emt 0:08:10]} Kg7 {[%emt 0:00:54]} 26. Nh2 {[%emt 0:03:26]} Rh8 {[%emt 0:00:34]} 27. Qf3 {[%emt 0:00:20]} (27. Rb5 {simplifies} Ne7 28. Qf3 Qxf3 29. Nxf3 Nc6 30. R5b2) 27... Qd8 {[%emt 0:04:01]} 28. Rc1 {[%emt 0:03:50]} h4 {[%emt 0:02:17]} 29. g4 {[%emt 0:00:07]} Qg5 {[%emt 0:00:56]} 30. Rcb1 {[%emt 0:01:06]} Ra8 {[%emt 0:03:37]} 31. Bc2 {[%emt 0:04:28]} Nd8 {[%emt 0:01:33]} (31... Na5 $11) 32. Bb3 $14 {[%emt 0:01:38]} c6 {[%emt 0:00:16]} 33. e4 {[%emt 0:00:11]} Be6 {[%emt 0:04:11]} 34. exd5 {[%emt 0:05:03]} cxd5 {[%emt 0:01:03]} 35. Ba4 {[%emt 0:04:03]} Rc8 {[%emt 0:00:38]} 36. Qe3 {[%emt 0:01:09]} Qf6 $2 {[%emt 0:02:08][%mdl 8192]} (36... Qxe3 $11 {and Black stays safe.} 37. fxe3 Rc7) 37. g5 $18 {[%emt 0:00:11]} Qe7 {[%emt 0:01:57]} 38. Qe5+ {[%emt 0:00:55]} f6 {[%emt 0:02:04]} (38... Kg8 $142 39. Re1 (39. Ng4 Qc7 $18) 39... Nc6) 39. gxf6+ $18 {[%emt 0:00:07]} Qxf6 {[%emt 0:00:07]} 40. Rxb7+ $1 {[%emt 0:01:37]} Nxb7 {[%emt 0:01:04]} 41. Rxb7+ {[%emt 0:30:05]} Bf7 {[%emt 0:30:41]} 42. Ng4 {[%emt 0:01:10]} (42. Rxa7 Qxe5 43. dxe5 Ra8 (43... Rxc5 44. e6 $16) 44. Rxa8 Rxa8 $17) (42. Qxd5 Rb8 $11) 42... Qxe5 {[%emt 0:00:00]} 43. Nxe5 {[%emt 0:00:00]} Rhf8 {[%emt 0:00:00]} (43... Rcf8 $142 44. Rxa7 Kf6 45. Nd7+ Ke6 46. Nxf8+ Rxf8 47. Bd7+ Ke7 48. Bb5+ Ke6 49. Bd7+ Ke7 50. Bh3+ Kf6) 44. Bd7 $18 {[%emt 0:00:00]} ({Weaker is} 44. Rxa7 Ra8 45. Rxa8 Rxa8 $11) 44... Rb8 {[%emt 0:00:00]} 45. Rxa7 {[%emt 0:00:00]} Kh6 $2 {[%emt 0:00:00]} (45... Kf6 46. a4 Rb4 47. Ra6+ Kg7) 46. c6 $18 {[%emt 0:00:00]} Be8 {[%emt 0:00:00]} 47. Rb7 {[%emt 0:00:00]} Ra8 {[%emt 0:00:00]} 48. c7 {[%emt 0:00:00]} Bxd7 {[%emt 0:03:48]} 49. Nxd7 {[%emt 0:00:00]} Rfc8 {[%emt 0:03:23]} 50. Nb6 {[%emt 0:00:00]} Rxc7 {[%emt 0:00:09]} 51. Rxc7 {[%emt 0:00:00]} Rxa3 {[%emt 0:00:04]} 52. Rc5 {[%emt 0:00:00]} g5 {[%emt 0:00:28]} 53. Nxd5 {[%emt 0:00:00]} g4 {[%emt 0:00:20]} 54. Rc3 {[%emt 0:00:00]} Ra1+ {[%emt 0:01:03]} 55. Kh2 {[%emt 0:00:00]} Ra2 {[%emt 0:00:36]} 56. Ne3 {[%emt 0:00:00]} Kg5 {[%emt 0:00:26]} 57. Rc2 {[%emt 0:00:00]} Ra3 {[%emt 0:00:13]} 58. g3 {[%emt 0:00:00]} hxg3+ {[%emt 0:00:54]} 59. Kxg3 {[%emt 0:00:00]} Rd3 {[%emt 0:00:16]} 60. d5 {[%emt 0:00:00]} (60. Rc4 $142 Ra3 61. Rc5+ Kg6 62. Rc8 (62. Kxg4 Rd3 $18) 62... Kf6 63. Kxg4 Ke7 64. Rc3 Ra8 65. Nf5+ Kd7 66. Rg3) 1-0

[Event "Reykjavik Open 2024"]
[Site "Reykjavik"]
[Date "2024.03.18"]
[Round "5.26"]
[White "Fernandez, Daniel Howard"]
[Black "Shivika Rohilla"]
[Result "1-0"]
[ECO "C47"]
[WhiteElo "2532"]
[BlackElo "2003"]
[Annotator "TA"]
[PlyCount "93"]
[EventDate "2024.03.12"]
[EventCountry "ISL"]
[SourceTitle "playchess.com"]
[Source "ChessBase"]
[SourceQuality "1"]
[TimeControl "40/5400+30:1800+30"]

{[%evp 9,93,0,10,-8,15,-1,19,17,56,49,47,60,70,75,75,68,82,73,79,65,75,61,114,108,128,122,135,110,162,118,282,269,321,316,276,269,339,149,267,244,270,235,631,604,774,657,657,626,676,676,673,146,675,675,681,677,802,802,802,799,779,776,710,710,709,696,687,663,643,633,854,826,811,732,1149,1152,29977,29977,29982,29983,29983,29984,29985,29986,29986,29987]} 1. e4 {[%emt 0:01:50]} e5 {[%emt 0:02:38]} 2. Nf3 {[%emt 0:00:14]} Nc6 {[%emt 0:00:06]} 3. Nc3 {[%emt 0:03:17]} Nf6 {[%emt 0:00:25]} 4. a3 {[%emt 0:00:02]} d5 {[%emt 0:03:30]} 5. Bb5 {[%emt 0:05:05]} d4 {[%emt 0:08:10]} 6. Ne2 {[%emt 0:11:20]} Bd6 {[%emt 0:20:46]} 7. d3 {[%emt 0:03:18]} h6 {[%emt 0:03:55]} 8. O-O {[%emt 0:02:40] The position is equal.} a6 {[%emt 0:00:43]} 9. Bxc6+ {[%emt 0:00:04]} bxc6 {[%emt 0:00:16]} 10. Nd2 {[%emt 0:04:50]} g5 {[%emt 0:07:48]} 11. Nc4 {[%emt 0:03:26]} Be6 {[%emt 0:00:24]} 12. Ng3 {[%emt 0:00:27]} a5 {[%emt 0:03:10]} 13. Bd2 {[%emt 0:02:02]} a4 {[%emt 0:00:14]} 14. b4 {[%emt 0:00:05]} axb3 {[%emt 0:04:45]} 15. cxb3 {[%emt 0:00:03]} Rg8 {[%emt 0:00:46]} ({Black should try} 15... O-O $14) 16. a4 $16 {[%emt 0:04:42]} Bg4 {[%emt 0:01:34]} 17. Qc2 {[%emt 0:01:37]} c5 {[%emt 0:01:33]} 18. a5 {[%emt 0:05:51] White is more active.} h5 {[%emt 0:01:37]} (18... Ra6 $16 {is a better defense.}) 19. b4 {[%emt 0:00:03]} h4 $2 {[%emt 0:08:36]} (19... cxb4 $16 20. Bxb4 (20. Qa4+ Qd7 $14) 20... Bxb4) 20. bxc5 $18 {[%emt 0:00:08]} hxg3 {[%emt 0:00:29]} 21. cxd6 {[%emt 0:01:04]} gxh2+ {[%emt 0:00:36]} 22. Kxh2 {[%emt 0:04:33]} Rh8+ {[%emt 0:07:09]} 23. Kg3 {[%emt 0:08:06]} (23. Kg1 $18 {and the rest is easy.} cxd6 24. Bxg5) 23... Be2 {[%emt 0:08:04] [#]} (23... cxd6 24. Bb4 (24. Bxg5 $2 Nxe4+ 25. Kxg4 Qxg5+ 26. Kf3 Nc3 $19) 24... Kf8 (24... Ra6 $2 25. Rh1 $18) 25. Bxd6+ (25. Nxd6 Kg7 $18) 25... Kg8 26. Bxe5) (23... Be6 $16 {keeps fighting.} 24. dxc7 (24. Bxg5 $2 Nxe4+ 25. Kf3 Qxg5 $19) (24. Nxe5 g4 $15) 24... Nh5+ 25. Kf3 Qxc7) 24. Rh1 $1 {[%emt 0:00:24]} Nh5+ {[%emt 0:00:29]} 25. Rxh5 {[%emt 0:00:04]} Rxh5 {[%emt 0:00:22] [#]} (25... Bxh5 26. dxc7 (26. Nxe5 Qxd6 27. Qa4+ Kd8 $16) (26. Qa4+ Kf8 $18) 26... Qxc7 27. Qa4+ (27. Bxg5 f5 $11) 27... Kf8) 26. dxc7 $1 {[%emt 0:00:50]} (26. Nxe5 g4 (26... Qxd6 27. Qc6+ Qxc6 28. Nxc6 $14) 27. d7+ (27. Nxg4 $2 Qh4+ 28. Kf4 Qxg4#) 27... Kf8 28. Qc5+ (28. Nxg4 $2 Qh4+ 29. Kf4 Qxg4#) (28. Bb4+ $2 Kg7 $19) 28... Kg8 29. Qxd4 Qh4+ 30. Kf4 Qg5+ 31. Kg3 Qxe5+ (31... Qxd2 $2 32. d8=Q+ Rxd8 33. Qxd8+ Kh7 34. Qxc7 $18) 32. Qxe5 Rxe5 $11) 26... Qf6 {[%emt 0:03:43][%cal Of6f4] [#] ( -> ...Qf4+!)} 27. Nd6+ $1 {[%emt 0:01:03][%mdl 512]} Qxd6 {[%emt 0:00:18]} 28. c8=Q+ {[%emt 0:00:08]} (28. c8=B $2 {too greedy.} Qf6 (28... Bxd3 $2 29. Qa4+ Kd8 30. Bg4 $18) 29. f3 g4 $19) 28... Rxc8 {[%emt 0:00:04]} 29. Qxc8+ {[%emt 0:00:09]} Qd8 {[%emt 0:01:39]} 30. Qxd8+ {[%emt 0:00:12]} Kxd8 {[%emt 0:00:04][%mdl 4096] Endgame. KRB-KRB} 31. a6 {[%emt 0:00:37] Threatening mate with a7.} Bxd3 {[%emt 0:00:08]} 32. f3 {[%emt 0:00:04] White threatens a7 and mate.} Bb5 {[%emt 0:02:01]} 33. a7 {[%emt 0:01:02]} Bc6 {[%emt 0:00:06]} 34. a8=Q+ {[%emt 0:03:05]} Bxa8 {[%emt 0:00:06]} 35. Rxa8+ {[%emt 0:00:11] KRB-KR} Kd7 {[%emt 0:00:10]} 36. Ra7+ {[%emt 0:00:07]} Ke6 {[%emt 0:00:05]} 37. Ra6+ {[%emt 0:00:06]} Kd7 {[%emt 0:00:13]} 38. Rf6 {[%emt 0:00:14]} Ke7 {[%emt 0:00:08]} 39. Rb6 {[%emt 0:01:16]} f6 {[%emt 0:00:33]} 40. Kg4 {[%emt 0:00:09]} Rh2 {[%emt 0:00:16]} 41. Bb4+ {[%emt 0:30:26]} Kf7 {[%emt 0:30:32]} 42. Kf5 {[%emt 0:00:08] Intending Rb7+ and mate.} Rxg2 {[%emt 0:00:34]} 43. Rxf6+ {[%emt 0:00:53] White mates.} Ke8 {[%emt 0:00:18]} 44. Ke6 {[%emt 0:00:15][%csl Gb4][%cal Rf6f8]} Kd8 {[%emt 0:00:30]} 45. Kd6 {[%emt 0:00:08][%cal Rf6f8]} Kc8 {[%emt 0:00:08]} 46. Kc6 {[%emt 0:00:08][%cal Rf6f8]} Rc2+ {[%emt 0:00:07]} 47. Bc5 {[%emt 0:00:05] Black got outplayed after the opening.   Weighted Error Value: White=0.19 (very precise) /Black=0.46.  Loses game:     	---       	Black=1      Missed win:     	White=1     	---        Mistake:       	---       	Black=4      Inaccurate:     	---       	Black=1      OK:         	White=10    	Black=5      Best:        	---       	Black=1      Strong:       	White=2     	---} 1-0

[Event "Reykjavik Open 2024"]
[Site "Reykjavik"]
[Date "2024.03.18"]
[Round "5.27"]
[White "Kunz, Andre"]
[Black "Sanitt, Ethan"]
[Result "0-1"]
[ECO "C01"]
[WhiteElo "2197"]
[BlackElo "1914"]
[Annotator "RC"]
[PlyCount "60"]
[EventDate "2024.03.12"]
[EventCountry "ISL"]
[SourceTitle "playchess.com"]
[Source "ChessBase"]
[SourceQuality "1"]
[TimeControl "40/5400+30:1800+30"]

1. e4 {[%emt 0:00:02]} e6 {[%emt 0:00:04]} 2. d4 {[%emt 0:00:13]} d5 {[%emt 0:00:05]} 3. Bd3 {[%emt 0:00:06]} dxe4 {[%emt 0:00:13]} 4. Bxe4 {[%emt 0:00:05]} Nf6 {[%emt 0:00:08]} 5. Bf3 {[%emt 0:00:03]} c5 {[%emt 0:00:28]} 6. Ne2 {[%emt 0:00:25]} Nc6 {[%emt 0:00:27]} 7. Be3 {[%emt 0:01:13]} cxd4 {[%emt 0:00:58]} 8. Nxd4 {[%emt 0:00:13]} Ne5 {[%emt 0:00:54]} 9. Nd2 {[%emt 0:09:53]} Nxf3+ {[%emt 0:00:46]} 10. Qxf3 {[%emt 0:01:20]} Nd5 {[%emt 0:07:55]} 11. O-O {[%emt 0:06:14]} Be7 {[%emt 0:01:54]} 12. Rfd1 {[%emt 0:16:48]} Nxe3 {[%emt 0:05:24]} 13. Qxe3 {[%emt 0:01:21]} O-O {[%emt 0:01:44]} 14. c4 {[%emt 0:08:13]} Bd7 {[%emt 0:27:42]} 15. N2f3 {[%emt 0:08:36]} Qc7 {[%emt 0:03:48]} 16. Ne5 {[%emt 0:04:23]} Bf6 {[%emt 0:05:10]} 17. Nxd7 {[%emt 0:12:05]} Qxd7 {[%emt 0:00:21]} 18. Rd2 {[%emt 0:01:37]} Qe7 {[%emt 0:04:09]} 19. Rad1 {[%emt 0:04:32]} Bg5 {[%emt 0:04:45]} 20. f4 {[%emt 0:00:41]} Bf6 {[%emt 0:00:06]} 21. Nb5 {[%emt 0:03:48]} Qb4 {[%emt 0:05:55]} 22. b3 {[%emt 0:02:41]} Be7 {[%emt 0:08:28]} 23. Qe4 {[%emt 0:02:01]} Bc5+ {[%emt 0:01:53]} 24. Kh1 {[%emt 0:01:18]} a6 {[%emt 0:00:36]} 25. Nd4 {[%emt 0:02:55]} g6 {[%emt 0:04:24]} 26. Nf3 {[%emt 0:02:42]} Be7 {[%emt 0:05:14]} 27. Ne5 {[%emt 0:00:27]} Rfd8 {[%emt 0:01:58]} 28. Nd7 {[%emt 0:00:36]} Rac8 {[%emt 0:02:31]} 29. Qe5 {[%emt 0:01:46]} b5 {[%emt 0:03:35]} 30. cxb5 {[%emt 0:06:28]} Qxd2 {[%emt 0:01:06]} 0-1

[Event "Reykjavik Open 2024"]
[Site "Reykjavik"]
[Date "2024.03.18"]
[Round "5.28"]
[White "Kjartansson, Matthias Bjorgvin"]
[Black "Eriksson, Jorgen"]
[Result "0-1"]
[ECO "D35"]
[WhiteElo "1893"]
[BlackElo "2154"]
[Annotator "RC"]
[PlyCount "112"]
[EventDate "2024.03.12"]
[EventCountry "ISL"]
[SourceTitle "playchess.com"]
[Source "ChessBase"]
[SourceQuality "1"]
[TimeControl "40/5400+30:1800+30"]

1. d4 {[%emt 0:00:04]} d5 {[%emt 0:19:16]} 2. c4 {[%emt 0:00:06]} e6 {[%emt 0:00:39]} 3. Nc3 {[%emt 0:00:47]} c6 {[%emt 0:00:20]} 4. cxd5 {[%emt 0:00:17]} exd5 {[%emt 0:00:34]} 5. Nf3 {[%emt 0:00:09]} Bf5 {[%emt 0:00:54]} 6. Bf4 {[%emt 0:01:07]} Nf6 {[%emt 0:03:23]} 7. e3 {[%emt 0:00:12]} Be7 {[%emt 0:01:29]} 8. h3 {[%emt 0:00:47]} Qb6 {[%emt 0:05:31]} 9. Bd3 {[%emt 0:04:01]} Bxd3 {[%emt 0:08:54]} 10. Qxd3 {[%emt 0:00:07]} Nbd7 {[%emt 0:00:51]} 11. O-O {[%emt 0:01:57]} O-O {[%emt 0:00:32]} 12. Rab1 {[%emt 0:05:07]} a5 {[%emt 0:03:12]} 13. Bg5 {[%emt 0:07:16]} Rfe8 {[%emt 0:04:09]} 14. Nd2 {[%emt 0:03:50]} Nh5 {[%emt 0:22:43]} 15. Bxe7 {[%emt 0:09:04]} Rxe7 {[%emt 0:00:08]} 16. a3 {[%emt 0:00:28]} Nhf6 {[%emt 0:09:03]} 17. b4 {[%emt 0:03:26]} axb4 {[%emt 0:00:13]} 18. axb4 {[%emt 0:00:35]} Qd8 {[%emt 0:02:43]} 19. Nb3 {[%emt 0:03:08]} b5 {[%emt 0:03:45]} 20. Na5 {[%emt 0:02:35]} Rc8 {[%emt 0:00:46]} 21. Rfc1 {[%emt 0:00:45]} Nb6 {[%emt 0:00:45]} 22. Ra1 {[%emt 0:05:58]} Qd6 {[%emt 0:02:32]} 23. Rcb1 {[%emt 0:04:02]} g6 {[%emt 0:01:50]} 24. Ra2 {[%emt 0:04:11]} Kg7 {[%emt 0:00:27]} 25. Re2 {[%emt 0:05:33]} Nc4 {[%emt 0:05:19]} 26. Nxc4 {[%emt 0:02:02]} bxc4 {[%emt 0:00:00]} 27. Qd1 {[%emt 0:02:25]} Rb8 {[%emt 0:00:00]} 28. Qa4 {[%emt 0:01:15]} Reb7 {[%emt 0:00:00]} 29. Reb2 {[%emt 0:01:23]} Rb6 {[%emt 0:00:39]} 30. Qa3 {[%emt 0:02:36]} Qe7 {[%emt 0:01:19]} 31. Ne2 {[%emt 0:04:39]} R8b7 {[%emt 0:00:49]} 32. Ng3 {[%emt 0:00:46]} h5 {[%emt 0:01:12]} 33. f3 {[%emt 0:03:45]} Ra7 {[%emt 0:02:06]} 34. Qc3 {[%emt 0:00:01]} Rba6 {[%emt 0:00:15]} 35. Re2 {[%emt 0:01:54]} Ra3 {[%emt 0:00:12]} 36. Qc1 {[%emt 0:00:06]} Ra2 {[%emt 0:00:49]} 37. Qe1 {[%emt 0:01:19]} Rxe2 {[%emt 0:00:33]} 38. Qxe2 {[%emt 0:00:09]} Rb7 {[%emt 0:00:33]} 39. Qd2 {[%emt 0:01:37]} Qd6 {[%emt 0:00:37]} 40. Ne2 {[%emt 0:03:51]} Qe7 {[%emt 0:00:28]} 41. Qc3 {[%emt 0:34:06]} Ra7 {[%emt 0:08:53]} 42. Kf2 {[%emt 0:00:00]} Rb7 {[%emt 0:05:39]} 43. Nf4 {[%emt 0:00:00]} Qd6 {[%emt 0:00:53]} 44. h4 {[%emt 0:00:00]} Qd7 {[%emt 0:00:40]} 45. Nh3 {[%emt 0:00:00]} Qf5 {[%emt 0:00:42]} 46. Qe1 {[%emt 0:00:00]} Ng4+ {[%emt 0:01:27]} 47. Kg1 {[%emt 0:00:00]} Nxe3 {[%emt 0:00:11]} 48. Rb2 {[%emt 0:00:00]} Nc2 {[%emt 0:01:23]} 49. Qc3 {[%emt 0:00:00]} Na1 {[%emt 0:01:08]} 50. Nf2 {[%emt 0:00:00]} Nb3 {[%emt 0:00:20]} 51. Re2 {[%emt 0:00:00]} Qf4 {[%emt 0:00:49]} 52. Rb2 {[%emt 0:00:00]} Qxh4 {[%emt 0:01:50]} 53. Rb1 {[%emt 0:00:00]} Qf4 {[%emt 0:00:35]} 54. Kh1 {[%emt 0:01:39]} Re7 {[%emt 0:00:37]} 55. Nd3 {[%emt 0:02:03]} Qf5 {[%emt 0:00:33]} 56. Rd1 {[%emt 0:02:40]} Re3 {[%emt 0:00:21]} 0-1

[Event "Reykjavik Open 2024"]
[Site "Reykjavik"]
[Date "2024.03.18"]
[Round "5.29"]
[White "Dimitrijeski, Boris"]
[Black "Ferzli, Michael"]
[Result "1-0"]
[ECO "D36"]
[WhiteElo "2183"]
[BlackElo "1879"]
[Annotator "RC"]
[PlyCount "159"]
[EventDate "2024.03.12"]
[EventCountry "ISL"]
[SourceTitle "playchess.com"]
[Source "ChessBase"]
[SourceQuality "1"]
[TimeControl "40/5400+30:1800+30"]

1. d4 {[%emt 0:02:14]} d5 {[%emt 0:02:29]} 2. c4 {[%emt 0:00:00]} e6 {[%emt 0:00:22]} 3. Nc3 {[%emt 0:00:00]} Nf6 {[%emt 0:00:18]} 4. cxd5 {[%emt 0:00:00]} exd5 {[%emt 0:00:21]} 5. Bg5 {[%emt 0:00:00]} Be7 {[%emt 0:00:34]} 6. e3 {[%emt 0:00:00]} c6 {[%emt 0:00:14]} 7. Bd3 {[%emt 0:00:00]} h6 {[%emt 0:00:27]} 8. Bh4 {[%emt 0:00:00]} O-O {[%emt 0:00:19]} 9. Nge2 {[%emt 0:01:28]} Re8 {[%emt 0:08:13]} 10. Qc2 {[%emt 0:00:29]} a5 {[%emt 0:00:24]} 11. O-O {[%emt 0:02:36]} Nbd7 {[%emt 0:00:36]} 12. a4 {[%emt 0:02:28]} Nf8 {[%emt 0:05:19]} 13. Rae1 {[%emt 0:03:06]} Be6 {[%emt 0:08:25]} 14. Nc1 {[%emt 0:07:28]} N6h7 {[%emt 0:11:35]} 15. Bxe7 {[%emt 0:03:40]} Rxe7 {[%emt 0:00:24]} 16. Nb3 {[%emt 0:02:07]} Nf6 {[%emt 0:01:55]} 17. h3 {[%emt 0:02:22]} Qd6 {[%emt 0:01:03]} 18. Kh1 {[%emt 0:07:49]} b6 {[%emt 0:05:29]} 19. Nd2 {[%emt 0:01:51]} Rae8 {[%emt 0:02:55]} 20. b3 {[%emt 0:04:18]} Qd7 {[%emt 0:04:44]} 21. Kh2 {[%emt 0:06:03]} Qd6+ {[%emt 0:00:40]} 22. Kh1 {[%emt 0:00:06]} Qd7 {[%emt 0:10:12]} 23. Kh2 {[%emt 0:00:05]} Qd6+ {[%emt 0:00:37]} 24. Kg1 {[%emt 0:00:16]} Bd7 {[%emt 0:01:38]} 25. Nf3 {[%emt 0:01:27]} Ne6 {[%emt 0:06:58]} 26. Ne5 {[%emt 0:07:41]} Rc8 {[%emt 0:02:34]} 27. Rd1 {[%emt 0:06:15]} c5 {[%emt 0:05:03]} 28. Nxd7 {[%emt 0:01:54]} Qxd7 {[%emt 0:00:38]} 29. dxc5 {[%emt 0:03:29]} Rxc5 {[%emt 0:01:33]} 30. Qb2 {[%emt 0:04:43]} Qc6 {[%emt 0:02:15]} 31. Nb5 {[%emt 0:01:12]} Nd7 {[%emt 0:04:03]} 32. Rd2 {[%emt 0:03:34]} Ng5 {[%emt 0:02:54]} 33. Nd4 {[%emt 0:11:41]} Qf6 {[%emt 0:00:19]} 34. Nf5 {[%emt 0:00:20]} Re6 {[%emt 0:01:18]} 35. Qxf6 {[%emt 0:10:05]} Nxf6 {[%emt 0:00:23]} 36. Rfd1 {[%emt 0:00:21]} Rc3 {[%emt 0:01:51]} 37. Nd4 {[%emt 0:02:05]} Re8 {[%emt 0:00:59]} 38. Rb2 {[%emt 0:00:45]} Rec8 {[%emt 0:02:39]} 39. f3 {[%emt 0:01:50]} Rc1 {[%emt 0:01:09]} 40. Rxc1 {[%emt 0:00:31]} Rxc1+ {[%emt 0:00:05]} 41. Kf2 {[%emt 0:30:32]} Nd7 {[%emt 0:36:11]} 42. Ne2 {[%emt 0:00:00]} Rc7 {[%emt 0:00:00]} 43. Nf4 {[%emt 0:00:00]} Nf6 {[%emt 0:00:00]} 44. b4 {[%emt 0:00:00]} axb4 {[%emt 0:00:00]} 45. Rxb4 {[%emt 0:00:00]} Nd7 {[%emt 0:00:00]} 46. Nxd5 {[%emt 0:00:00]} Nc5 {[%emt 0:00:00]} 47. Be2 {[%emt 0:00:00]} Rb7 {[%emt 0:00:00]} 48. e4 {[%emt 0:00:00]} Nge6 {[%emt 0:00:00]} 49. Ke3 {[%emt 0:00:00]} g5 {[%emt 0:00:00]} 50. Bb5 {[%emt 0:00:00]} Nc7 {[%emt 0:00:00]} 51. Bc6 {[%emt 0:01:27]} Nxd5+ {[%emt 0:00:00]} 52. exd5 {[%emt 0:01:53]} Ra7 {[%emt 0:00:00]} 53. d6 {[%emt 0:02:56]} f5 {[%emt 0:00:00]} 54. Rxb6 {[%emt 0:00:39]} Kf7 {[%emt 0:01:22]} 55. Bd5+ {[%emt 0:03:31]} Ke8 {[%emt 0:00:19]} 56. Bc6+ {[%emt 0:00:04]} Kf7 {[%emt 0:00:16]} 57. d7 {[%emt 0:00:51]} Nxd7 {[%emt 0:01:08]} 58. Bxd7 {[%emt 0:00:10]} Rxd7 {[%emt 0:00:05]} 59. Rxh6 {[%emt 0:00:08]} Kg7 {[%emt 0:00:35]} 60. Rc6 {[%emt 0:00:23]} Ra7 {[%emt 0:02:57]} 61. Rc4 {[%emt 0:00:08]} Kf6 {[%emt 0:00:11]} 62. Kd4 {[%emt 0:00:23]} Ra5 {[%emt 0:00:12]} 63. Kc3 {[%emt 0:00:23]} Re5 {[%emt 0:01:24]} 64. Rc6+ {[%emt 0:01:32]} Ke7 {[%emt 0:00:31]} 65. Kb3 {[%emt 0:00:06]} Kd7 {[%emt 0:00:37]} 66. Rc2 {[%emt 0:00:06]} Re8 {[%emt 0:01:37]} 67. a5 {[%emt 0:00:15]} g4 {[%emt 0:00:44]} 68. hxg4 {[%emt 0:00:23]} fxg4 {[%emt 0:00:01]} 69. fxg4 {[%emt 0:00:51]} Re3+ {[%emt 0:00:29]} 70. Kc4 {[%emt 0:00:48]} Re4+ {[%emt 0:01:12]} 71. Kb5 {[%emt 0:00:44]} Rxg4 {[%emt 0:00:10]} 72. a6 {[%emt 0:00:19]} Rg5+ {[%emt 0:00:12]} 73. Kb6 {[%emt 0:00:11]} Rg3 {[%emt 0:00:40]} 74. Ra2 {[%emt 0:00:15]} Rb3+ {[%emt 0:00:14]} 75. Kc5 {[%emt 0:00:07]} Rc3+ {[%emt 0:00:21]} 76. Kd5 {[%emt 0:00:12]} Rc8 {[%emt 0:00:17]} 77. g4 {[%emt 0:02:17]} Ra8 {[%emt 0:01:32]} 78. a7 {[%emt 0:00:00]} Kc7 {[%emt 0:00:55]} 79. Ke6 {[%emt 0:00:00]} Kb7 {[%emt 0:00:37]} 80. Kf7 {[%emt 0:00:00]} 1-0